[Event "Titled Tuesday Blitz February 22 Late 2022"]
[White "Gledura, Benjamin"]
[Black "Steenbekkers, Franck"]
[WhiteFideId "712779"]
[BlackFideId "1004220"]
[WhiteElo "2326"]
[BlackElo "2156"]
[Result "1-0"]
[Round "02"]
[TimeControl "180+1"]
[Date "2022.02.23"]
[WhiteClock "0:01:02"]
[BlackClock "0:00:06"]

1. e4 {[%clk 0:03:00]}  e6 {[%clk 0:02:56]} 2. d4 {[%clk 0:03:00]}  d5 {[%clk 0:02:55]} 3. exd5 {[%clk 0:02:59]}  exd5 {[%clk 0:02:55]} 4. Nc3 {[%clk 0:02:59]}  Bb4 {[%clk 0:02:52]} 5. Bf4 {[%clk 0:02:51]}  Nf6 {[%clk 0:02:51]} 6. f3 {[%clk 0:02:49]}  O-O {[%clk 0:02:49]} 7. Qd2 {[%clk 0:02:48]}  c6 {[%clk 0:02:46]} 8. O-O-O {[%clk 0:02:47]}  Qa5 {[%clk 0:02:45]} 9. Nge2 {[%clk 0:02:47]}  Nbd7 {[%clk 0:02:39]} 10. Kb1 {[%clk 0:02:26]}  Nb6 {[%clk 0:02:37]} 11. Qd3 {[%clk 0:02:18]}  Nc4 {[%clk 0:02:17]} 12. Bc1 {[%clk 0:02:04]}  g6 {[%clk 0:02:04]} 13. g4 {[%clk 0:02:04]}  Re8 {[%clk 0:01:53]} 14. Nf4 {[%clk 0:01:48]}  Nxg4 {[%clk 0:01:33]} 15. fxg4 {[%clk 0:01:46]}  Bxg4 {[%clk 0:01:33]} 16. Nce2 {[%clk 0:01:25]}  Bf5 {[%clk 0:01:17]} 17. Qb3 {[%clk 0:01:24]}  Re4 {[%clk 0:01:06]} 18. Ng3 {[%clk 0:01:23]}  Rae8 {[%clk 0:00:22]} 19. Nxf5 {[%clk 0:01:22]}  gxf5 {[%clk 0:00:20]} 20. Rg1+ {[%clk 0:01:21]}  Kf8 {[%clk 0:00:18]} 21. Bxc4 {[%clk 0:01:21]}  dxc4 {[%clk 0:00:16]} 22. Qg3 {[%clk 0:01:21]}  c3 {[%clk 0:00:14]} 23. Nd3 {[%clk 0:01:05]}  Bd6 {[%clk 0:00:06]} 24. Qxd6+ {[%clk 0:01:02]} 1-0


[Site "https://www.chess.com"]

[Event "Titled Tuesday Blitz February 22 Late 2022"]
[White "Goltsev, Dmitry"]
[Black "Lodici, Lorenzo"]
[WhiteFideId "24176710"]
[BlackFideId "884189"]
[WhiteElo "2273"]
[BlackElo "2265"]
[Result "0-1"]
[Round "02"]
[TimeControl "180+1"]
[Date "2022.02.22"]
[WhiteClock "0:00:35"]
[BlackClock "0:00:51"]

1. e4 {[%clk 0:02:57]}  e5 {[%clk 0:02:59]} 2. Nf3 {[%clk 0:02:57]}  Nc6 {[%clk 0:02:59]} 3. Bb5 {[%clk 0:02:58]}  Bc5 {[%clk 0:03:00]} 4. O-O {[%clk 0:02:58]}  Qf6 {[%clk 0:03:00]} 5. c3 {[%clk 0:02:58]}  Nge7 {[%clk 0:03:01]} 6. Na3 {[%clk 0:02:56]}  O-O {[%clk 0:03:00]} 7. Nc2 {[%clk 0:02:57]}  a6 {[%clk 0:03:00]} 8. Be2 {[%clk 0:02:55]}  d6 {[%clk 0:03:01]} 9. d4 {[%clk 0:02:55]}  Ba7 {[%clk 0:02:57]} 10. Bg5 {[%clk 0:02:53]}  Qg6 {[%clk 0:02:46]} 11. dxe5 {[%clk 0:02:36]}  dxe5 {[%clk 0:02:40]} 12. Nxe5 {[%clk 0:02:20]}  Qxg5 {[%clk 0:02:39]} 13. Nxc6 {[%clk 0:02:18]}  Nxc6 {[%clk 0:02:39]} 14. Bf3 {[%clk 0:02:10]}  Ne5 {[%clk 0:02:36]} 15. Qe2 {[%clk 0:02:03]}  Be6 {[%clk 0:02:36]} 16. b3 {[%clk 0:02:02]}  Rad8 {[%clk 0:02:35]} 17. Rfd1 {[%clk 0:02:00]}  Rd2 {[%clk 0:02:11]} 18. Rxd2 {[%clk 0:01:54]}  Nxf3+ {[%clk 0:02:11]} 19. Qxf3 {[%clk 0:01:36]}  Qxd2 {[%clk 0:02:12]} 20. Nb4 {[%clk 0:01:32]}  c6 {[%clk 0:01:44]} 21. Rd1 {[%clk 0:01:30]}  Qb2 {[%clk 0:01:44]} 22. c4 {[%clk 0:01:17]}  a5 {[%clk 0:01:43]} 23. Nd3 {[%clk 0:01:17]}  Qxa2 {[%clk 0:01:43]} 24. Nf4 {[%clk 0:01:16]}  a4 {[%clk 0:01:42]} 25. bxa4 {[%clk 0:01:13]}  Qxc4 {[%clk 0:01:42]} 26. Nh5 {[%clk 0:01:11]}  Bd4 {[%clk 0:01:40]} 27. Qg3 {[%clk 0:01:08]}  Qxa4 {[%clk 0:01:40]} 28. Re1 {[%clk 0:01:03]}  Qb4 {[%clk 0:01:34]} 29. Rd1 {[%clk 0:01:01]}  g6 {[%clk 0:01:31]} 30. e5 {[%clk 0:01:00]}  f5 {[%clk 0:01:02]} 31. Qh4 {[%clk 0:00:52]}  Bxf2+ {[%clk 0:00:58]} 32. Qxf2 {[%clk 0:00:53]}  gxh5 {[%clk 0:00:58]} 33. h3 {[%clk 0:00:45]}  h4 {[%clk 0:00:53]} 34. Rd6 {[%clk 0:00:44]}  Bd5 {[%clk 0:00:53]} 35. Qe3 {[%clk 0:00:40]}  f4 {[%clk 0:00:51]} 36. Qe1 {[%clk 0:00:35]}  Qxe1+ {[%clk 0:00:51]} 0-1


[Site "https://www.chess.com"]

[Event "Titled Tuesday Blitz February 22 Late 2022"]
[White "Golubev, Mikhail"]
[Black "Saraci, Nderim"]
[WhiteFideId "14100983"]
[BlackFideId "6351921"]
[WhiteElo "2374"]
[BlackElo "2573"]
[Result "0-1"]
[Round "02"]
[TimeControl "180+1"]
[Date "2022.02.22"]
[WhiteClock "0:00:04"]
[BlackClock "0:00:15"]

1. e4 {[%clk 0:03:00]}  c5 {[%clk 0:02:59]} 2. Nf3 {[%clk 0:03:00]}  e6 {[%clk 0:02:59]} 3. d4 {[%clk 0:03:00]}  cxd4 {[%clk 0:02:59]} 4. Nxd4 {[%clk 0:03:01]}  a6 {[%clk 0:02:59]} 5. Bd3 {[%clk 0:03:01]}  Qc7 {[%clk 0:02:59]} 6. O-O {[%clk 0:03:01]}  Bc5 {[%clk 0:02:58]} 7. Nb3 {[%clk 0:02:59]}  Ba7 {[%clk 0:02:45]} 8. Qg4 {[%clk 0:02:54]}  g6 {[%clk 0:02:38]} 9. Qe2 {[%clk 0:02:54]}  d6 {[%clk 0:02:37]} 10. a4 {[%clk 0:02:49]}  Nc6 {[%clk 0:02:35]} 11. a5 {[%clk 0:02:45]}  Nf6 {[%clk 0:02:30]} 12. Bh6 {[%clk 0:02:43]}  Nd7 {[%clk 0:02:27]} 13. Nc3 {[%clk 0:02:38]}  Nc5 {[%clk 0:02:14]} 14. Nxc5 {[%clk 0:02:19]}  Bxc5 {[%clk 0:02:13]} 15. Kh1 {[%clk 0:02:19]}  Bd7 {[%clk 0:02:06]} 16. Bg7 {[%clk 0:02:06]}  Rg8 {[%clk 0:02:02]} 17. Bf6 {[%clk 0:02:06]}  Bd4 {[%clk 0:01:47]} 18. Nd5 {[%clk 0:02:06]}  exd5 {[%clk 0:01:38]} 19. exd5+ {[%clk 0:02:07]}  Kf8 {[%clk 0:01:21]} 20. dxc6 {[%clk 0:02:05]}  Bxf6 {[%clk 0:01:21]} 21. cxd7 {[%clk 0:02:04]}  Qxd7 {[%clk 0:01:00]} 22. c3 {[%clk 0:02:04]}  Kg7 {[%clk 0:01:00]} 23. Bc4 {[%clk 0:02:04]}  Rge8 {[%clk 0:00:50]} 24. Qf3 {[%clk 0:02:01]}  Rab8 {[%clk 0:00:50]} 25. Rfd1 {[%clk 0:01:57]}  Qc7 {[%clk 0:00:46]} 26. Bd5 {[%clk 0:01:49]}  h5 {[%clk 0:00:42]} 27. Ra4 {[%clk 0:01:44]}  Be5 {[%clk 0:00:34]} 28. g3 {[%clk 0:01:36]}  b6 {[%clk 0:00:31]} 29. Rc4 {[%clk 0:01:22]}  Qe7 {[%clk 0:00:31]} 30. axb6 {[%clk 0:01:21]}  Rxb6 {[%clk 0:00:31]} 31. b4 {[%clk 0:01:21]}  Rbb8 {[%clk 0:00:29]} 32. Kg2 {[%clk 0:01:20]}  Rec8 {[%clk 0:00:29]} 33. Ra1 {[%clk 0:01:15]}  Rxc4 {[%clk 0:00:29]} 34. Bxc4 {[%clk 0:01:15]}  Qc7 {[%clk 0:00:28]} 35. Bxa6 {[%clk 0:01:10]}  Qxc3 {[%clk 0:00:27]} 36. Qxc3 {[%clk 0:00:37]}  Bxc3 {[%clk 0:00:28]} 37. Rd1 {[%clk 0:00:36]}  Bxb4 {[%clk 0:00:28]} 38. Rb1 {[%clk 0:00:36]}  d5 {[%clk 0:00:26]} 39. Rd1 {[%clk 0:00:29]}  Rd8 {[%clk 0:00:24]} 40. Bc4 {[%clk 0:00:23]}  d4 {[%clk 0:00:22]} 41. Rb1 {[%clk 0:00:19]}  Be7 {[%clk 0:00:20]} 42. Rb7 {[%clk 0:00:18]}  Kf8 {[%clk 0:00:20]} 43. Kf1 {[%clk 0:00:15]}  d3 {[%clk 0:00:20]} 44. Ke1 {[%clk 0:00:15]}  d2+ {[%clk 0:00:20]} 45. Kd1 {[%clk 0:00:14]}  Rd4 {[%clk 0:00:21]} 46. Rb8+ {[%clk 0:00:13]}  Kg7 {[%clk 0:00:20]} 47. Bb3 {[%clk 0:00:14]}  h4 {[%clk 0:00:20]} 48. Rb7 {[%clk 0:00:13]}  Kf8 {[%clk 0:00:20]} 49. Rb8+ {[%clk 0:00:13]}  Kg7 {[%clk 0:00:20]} 50. Rb7 {[%clk 0:00:13]}  Kf6 {[%clk 0:00:20]} 51. Rb6+ {[%clk 0:00:13]}  Bd6 {[%clk 0:00:21]} 52. gxh4 {[%clk 0:00:08]}  Kg7 {[%clk 0:00:18]} 53. Rb7 {[%clk 0:00:08]}  Bb4 {[%clk 0:00:16]} 54. Rxf7+ {[%clk 0:00:06]}  Kh6 {[%clk 0:00:17]} 55. Rb7 {[%clk 0:00:06]}  Rxh4 {[%clk 0:00:16]} 56. Bg8 {[%clk 0:00:05]}  Re4 {[%clk 0:00:15]} 57. Rh7+ {[%clk 0:00:04]}  Kg5 {[%clk 0:00:15]} 0-1


[Site "https://www.chess.com"]

[Event "Titled Tuesday Blitz February 22 Late 2022"]
[White "Gupta, Abhijeet"]
[Black "Tregubov, Pavel V."]
[WhiteFideId "5010608"]
[BlackFideId "4115341"]
[WhiteElo "2549"]
[BlackElo "2341"]
[Result "1-0"]
[Round "02"]
[TimeControl "180+1"]
[Date "2022.02.22"]
[WhiteClock "0:00:54"]
[BlackClock "0:00:22"]

1. d4 {[%clk 0:03:00]}  Nf6 {[%clk 0:02:59]} 2. c4 {[%clk 0:03:00]}  e6 {[%clk 0:03:00]} 3. Nf3 {[%clk 0:03:01]}  Bb4+ {[%clk 0:03:00]} 4. Bd2 {[%clk 0:03:00]}  Qe7 {[%clk 0:03:01]} 5. g3 {[%clk 0:02:59]}  Bxd2+ {[%clk 0:02:56]} 6. Nbxd2 {[%clk 0:02:56]}  d6 {[%clk 0:02:55]} 7. Bg2 {[%clk 0:02:43]}  e5 {[%clk 0:02:55]} 8. O-O {[%clk 0:02:35]}  O-O {[%clk 0:02:55]} 9. e4 {[%clk 0:02:30]}  a5 {[%clk 0:02:45]} 10. h3 {[%clk 0:02:24]}  Nc6 {[%clk 0:02:42]} 11. d5 {[%clk 0:02:20]}  Nb4 {[%clk 0:02:42]} 12. Ne1 {[%clk 0:02:19]}  Bd7 {[%clk 0:02:26]} 13. a3 {[%clk 0:02:19]}  Na6 {[%clk 0:02:26]} 14. Nd3 {[%clk 0:02:10]}  a4 {[%clk 0:02:26]} 15. f4 {[%clk 0:02:07]}  b6 {[%clk 0:02:12]} 16. f5 {[%clk 0:02:02]}  Nc5 {[%clk 0:02:10]} 17. Nxc5 {[%clk 0:02:00]}  bxc5 {[%clk 0:02:04]} 18. Nb1 {[%clk 0:02:00]}  Rfb8 {[%clk 0:02:02]} 19. Rf2 {[%clk 0:02:00]}  Rb3 {[%clk 0:01:53]} 20. Nc3 {[%clk 0:01:59]}  Rab8 {[%clk 0:01:52]} 21. Qc1 {[%clk 0:01:52]}  h6 {[%clk 0:01:37]} 22. Bf3 {[%clk 0:01:49]}  Bc8 {[%clk 0:01:07]} 23. Rb1 {[%clk 0:01:44]}  Ba6 {[%clk 0:01:06]} 24. Bd1 {[%clk 0:01:40]}  Bxc4 {[%clk 0:00:57]} 25. Bxb3 {[%clk 0:01:37]}  Bxb3 {[%clk 0:00:57]} 26. Qe3 {[%clk 0:01:34]}  Qe8 {[%clk 0:00:55]} 27. g4 {[%clk 0:01:31]}  c6 {[%clk 0:00:46]} 28. dxc6 {[%clk 0:01:28]}  Qxc6 {[%clk 0:00:46]} 29. Kh2 {[%clk 0:01:28]}  Nh7 {[%clk 0:00:45]} 30. h4 {[%clk 0:01:25]}  f6 {[%clk 0:00:35]} 31. Rd2 {[%clk 0:01:15]}  Rb6 {[%clk 0:00:31]} 32. Nd5 {[%clk 0:01:11]}  Rb7 {[%clk 0:00:30]} 33. Qd3 {[%clk 0:01:04]}  Nf8 {[%clk 0:00:26]} 34. Rg1 {[%clk 0:00:56]}  Nd7 {[%clk 0:00:22]} 35. Ne7+ {[%clk 0:00:54]} 1-0


[Site "https://www.chess.com"]

[Event "Titled Tuesday Blitz February 22 Late 2022"]
[White "Hess, Robert"]
[Black "Aigner, Michael"]
[WhiteFideId "2022036"]
[BlackFideId "2017288"]
[WhiteElo "2557"]
[BlackElo "2408"]
[Result "1-0"]
[Round "02"]
[TimeControl "180+1"]
[Date "2022.02.23"]
[WhiteClock "0:01:09"]
[BlackClock "0:01:30"]

1. b3 {[%clk 0:02:53]}  d5 {[%clk 0:02:58]} 2. Bb2 {[%clk 0:02:54]}  c6 {[%clk 0:02:59]} 3. d3 {[%clk 0:02:52]}  Nd7 {[%clk 0:02:59]} 4. Nd2 {[%clk 0:02:52]}  Ngf6 {[%clk 0:02:57]} 5. h3 {[%clk 0:02:52]}  e5 {[%clk 0:02:56]} 6. g4 {[%clk 0:02:50]}  Bd6 {[%clk 0:02:55]} 7. Bg2 {[%clk 0:02:50]}  O-O {[%clk 0:02:55]} 8. e3 {[%clk 0:02:50]}  Qe7 {[%clk 0:02:54]} 9. a3 {[%clk 0:02:48]}  Ne8 {[%clk 0:02:54]} 10. Ne2 {[%clk 0:02:47]}  Nc7 {[%clk 0:02:54]} 11. Ng3 {[%clk 0:02:47]}  g6 {[%clk 0:02:49]} 12. Qe2 {[%clk 0:02:44]}  a5 {[%clk 0:02:40]} 13. h4 {[%clk 0:02:43]}  a4 {[%clk 0:02:39]} 14. b4 {[%clk 0:02:42]}  c5 {[%clk 0:02:36]} 15. b5 {[%clk 0:02:31]}  Nf6 {[%clk 0:02:26]} 16. b6 {[%clk 0:02:14]}  Ne6 {[%clk 0:02:23]} 17. g5 {[%clk 0:02:13]}  Nd7 {[%clk 0:02:23]} 18. Bxd5 {[%clk 0:02:13]}  Nxb6 {[%clk 0:02:23]} 19. Ba2 {[%clk 0:01:51]}  Ng7 {[%clk 0:02:22]} 20. Nde4 {[%clk 0:01:49]}  Nd7 {[%clk 0:02:15]} 21. h5 {[%clk 0:01:47]}  b6 {[%clk 0:02:10]} 22. Qg4 {[%clk 0:01:33]}  Nb8 {[%clk 0:01:51]} 23. Qh4 {[%clk 0:01:23]}  h6 {[%clk 0:01:34]} 24. hxg6 {[%clk 0:01:10]}  Qxg5 {[%clk 0:01:29]} 25. Nxg5 {[%clk 0:01:09]}  hxg5 {[%clk 0:01:30]} 26. Qh8# {[%clk 0:01:09]} 1-0


[Site "https://www.chess.com"]

[Event "Titled Tuesday Blitz February 22 Late 2022"]
[White "Holt, Conrad"]
[Black "Borisova, Ekaterina"]
[WhiteFideId "2034387"]
[BlackFideId "34124184"]
[WhiteElo "2586"]
[BlackElo "2034"]
[Result "1-0"]
[Round "02"]
[TimeControl "180+1"]
[Date "2022.02.22"]
[WhiteClock "0:02:34"]
[BlackClock "0:01:47"]

1. d4 {[%clk 0:03:00]}  Nf6 {[%clk 0:02:59]} 2. c4 {[%clk 0:03:01]}  e6 {[%clk 0:03:00]} 3. Nc3 {[%clk 0:03:01]}  Bb4 {[%clk 0:03:00]} 4. Qc2 {[%clk 0:03:02]}  O-O {[%clk 0:02:59]} 5. e4 {[%clk 0:03:01]}  d5 {[%clk 0:02:58]} 6. e5 {[%clk 0:03:01]}  Ne4 {[%clk 0:02:58]} 7. Bd3 {[%clk 0:03:01]}  f5 {[%clk 0:02:47]} 8. exf6 {[%clk 0:02:56]}  Qxf6 {[%clk 0:02:44]} 9. Nf3 {[%clk 0:02:56]}  Nc6 {[%clk 0:02:42]} 10. O-O {[%clk 0:02:54]}  Nxd4 {[%clk 0:02:33]} 11. Nxd4 {[%clk 0:02:54]}  Qxd4 {[%clk 0:02:34]} 12. Nxe4 {[%clk 0:02:53]}  dxe4 {[%clk 0:02:30]} 13. Bxe4 {[%clk 0:02:54]}  h6 {[%clk 0:02:02]} 14. Be3 {[%clk 0:02:52]}  Qe5 {[%clk 0:02:00]} 15. c5 {[%clk 0:02:51]}  Ba5 {[%clk 0:01:51]} 16. f4 {[%clk 0:02:37]}  Qf6 {[%clk 0:01:47]} 17. Qa4 {[%clk 0:02:34]} 1-0


[Site "https://www.chess.com"]

[Event "Titled Tuesday Blitz February 22 Late 2022"]
[White "Indjic, Aleksandar"]
[Black "Novikov, Evgenij"]
[WhiteFideId "911925"]
[BlackFideId "4125380"]
[WhiteElo "2616"]
[BlackElo "2242"]
[Result "1-0"]
[Round "02"]
[TimeControl "180+1"]
[Date "2022.02.23"]
[WhiteClock "0:00:35"]
[BlackClock "0:00:02"]

1. e4 {[%clk 0:03:00]}  c6 {[%clk 0:02:58]} 2. d4 {[%clk 0:02:58]}  d5 {[%clk 0:02:58]} 3. exd5 {[%clk 0:02:59]}  cxd5 {[%clk 0:02:59]} 4. Bd3 {[%clk 0:02:58]}  Nc6 {[%clk 0:02:59]} 5. c3 {[%clk 0:02:58]}  Qc7 {[%clk 0:02:59]} 6. Ne2 {[%clk 0:02:57]}  Bg4 {[%clk 0:02:51]} 7. O-O {[%clk 0:02:55]}  e6 {[%clk 0:02:49]} 8. Qe1 {[%clk 0:02:53]}  Bd6 {[%clk 0:02:44]} 9. f3 {[%clk 0:02:53]}  Bh5 {[%clk 0:02:42]} 10. Qh4 {[%clk 0:02:51]}  Bg6 {[%clk 0:02:00]} 11. Bxg6 {[%clk 0:02:49]}  fxg6 {[%clk 0:02:01]} 12. Nf4 {[%clk 0:02:48]}  Bxf4 {[%clk 0:01:46]} 13. Bxf4 {[%clk 0:02:49]}  Qe7 {[%clk 0:01:41]} 14. Bg5 {[%clk 0:02:43]}  Nf6 {[%clk 0:01:40]} 15. Nd2 {[%clk 0:02:42]}  h6 {[%clk 0:01:39]} 16. Bxf6 {[%clk 0:02:40]}  Qxf6 {[%clk 0:01:35]} 17. Qg3 {[%clk 0:02:35]}  O-O {[%clk 0:01:33]} 18. f4 {[%clk 0:02:33]}  b5 {[%clk 0:01:24]} 19. a3 {[%clk 0:02:28]}  a5 {[%clk 0:01:24]} 20. Nb3 {[%clk 0:02:24]}  b4 {[%clk 0:01:23]} 21. Nc5 {[%clk 0:02:23]}  bxc3 {[%clk 0:01:20]} 22. bxc3 {[%clk 0:02:24]}  Rfe8 {[%clk 0:01:14]} 23. Rab1 {[%clk 0:02:19]}  Rac8 {[%clk 0:01:11]} 24. Qe3 {[%clk 0:02:10]}  g5 {[%clk 0:01:07]} 25. a4 {[%clk 0:02:06]}  gxf4 {[%clk 0:01:05]} 26. Rxf4 {[%clk 0:02:05]}  Qg6 {[%clk 0:01:06]} 27. Rb6 {[%clk 0:01:42]}  e5 {[%clk 0:00:52]} 28. dxe5 {[%clk 0:01:40]}  Rxe5 {[%clk 0:00:49]} 29. Qf2 {[%clk 0:01:12]}  Qe8 {[%clk 0:00:33]} 30. h4 {[%clk 0:01:05]}  Re1+ {[%clk 0:00:19]} 31. Kh2 {[%clk 0:01:03]}  Re2 {[%clk 0:00:18]} 32. Qf3 {[%clk 0:01:03]}  Qe5 {[%clk 0:00:15]} 33. Nd3 {[%clk 0:00:59]}  Qe6 {[%clk 0:00:15]} 34. Rxc6 {[%clk 0:00:50]}  Rxc6 {[%clk 0:00:12]} 35. Rf8+ {[%clk 0:00:50]}  Kh7 {[%clk 0:00:13]} 36. Nf4 {[%clk 0:00:50]}  Qd6 {[%clk 0:00:08]} 37. Qxe2 {[%clk 0:00:43]}  Qxf8 {[%clk 0:00:08]} 38. Qd3+ {[%clk 0:00:43]}  g6 {[%clk 0:00:08]} 39. Nxd5 {[%clk 0:00:41]}  Rd6 {[%clk 0:00:08]} 40. c4 {[%clk 0:00:40]}  Qd8 {[%clk 0:00:07]} 41. g3 {[%clk 0:00:40]}  Re6 {[%clk 0:00:03]} 42. h5 {[%clk 0:00:39]}  Qe8 {[%clk 0:00:03]} 43. Nf4 {[%clk 0:00:37]}  Rf6 {[%clk 0:00:02]} 44. hxg6+ {[%clk 0:00:38]}  Kg8 {[%clk 0:00:02]} 45. Qd5+ {[%clk 0:00:37]}  Kh8 {[%clk 0:00:02]} 46. Qd4 {[%clk 0:00:37]}  Qf8 {[%clk 0:00:02]} 47. Nh5 {[%clk 0:00:35]} 1-0


[Site "https://www.chess.com"]

[Event "Titled Tuesday Blitz February 22 Late 2022"]
[White "Iskusnyh, Sergei"]
[Black "volunteers1998"]
[WhiteFideId "4120027"]
[WhiteElo "2492"]
[BlackElo "2259"]
[Result "1-0"]
[Round "02"]
[TimeControl "180+1"]
[Date "2022.02.23"]
[WhiteClock "0:00:01"]
[BlackClock "0:00:01"]

1. d4 {[%clk 0:02:57]}  f5 {[%clk 0:02:59]} 2. c4 {[%clk 0:02:56]}  Nf6 {[%clk 0:02:57]} 3. Nf3 {[%clk 0:02:52]}  g6 {[%clk 0:02:57]} 4. e3 {[%clk 0:02:52]}  Bg7 {[%clk 0:02:56]} 5. Be2 {[%clk 0:02:53]}  O-O {[%clk 0:02:53]} 6. O-O {[%clk 0:02:53]}  d6 {[%clk 0:02:51]} 7. Nc3 {[%clk 0:02:54]}  Nc6 {[%clk 0:02:45]} 8. d5 {[%clk 0:02:50]}  Ne5 {[%clk 0:02:46]} 9. Nxe5 {[%clk 0:02:47]}  dxe5 {[%clk 0:02:46]} 10. Qc2 {[%clk 0:02:46]}  e6 {[%clk 0:02:44]} 11. e4 {[%clk 0:02:40]}  f4 {[%clk 0:02:34]} 12. b3 {[%clk 0:02:35]}  a6 {[%clk 0:02:29]} 13. Ba3 {[%clk 0:02:31]}  Re8 {[%clk 0:02:21]} 14. Rfd1 {[%clk 0:02:25]}  exd5 {[%clk 0:02:18]} 15. cxd5 {[%clk 0:02:10]}  Bd7 {[%clk 0:02:13]} 16. Rac1 {[%clk 0:02:08]}  Rc8 {[%clk 0:02:09]} 17. Na4 {[%clk 0:02:03]}  Bxa4 {[%clk 0:02:02]} 18. bxa4 {[%clk 0:02:03]}  Nd7 {[%clk 0:01:52]} 19. Bg4 {[%clk 0:02:00]}  Kh8 {[%clk 0:01:43]} 20. a5 {[%clk 0:01:51]}  Bf8 {[%clk 0:01:36]} 21. Bxf8 {[%clk 0:01:39]}  Rxf8 {[%clk 0:01:37]} 22. Qb2 {[%clk 0:01:39]}  h5 {[%clk 0:01:24]} 23. Bxd7 {[%clk 0:01:37]}  Qxd7 {[%clk 0:01:22]} 24. Qxe5+ {[%clk 0:01:37]}  Qg7 {[%clk 0:01:19]} 25. Qxg7+ {[%clk 0:01:35]}  Kxg7 {[%clk 0:01:18]} 26. Rb1 {[%clk 0:01:05]}  Rb8 {[%clk 0:01:13]} 27. Rdc1 {[%clk 0:01:05]}  Rf7 {[%clk 0:01:09]} 28. e5 {[%clk 0:01:05]}  Re7 {[%clk 0:01:07]} 29. e6 {[%clk 0:00:56]}  Kf6 {[%clk 0:01:05]} 30. h4 {[%clk 0:00:56]}  Ke5 {[%clk 0:01:03]} 31. Rd1 {[%clk 0:00:54]}  Ree8 {[%clk 0:00:57]} 32. Rb2 {[%clk 0:00:47]}  Red8 {[%clk 0:00:53]} 33. Re2+ {[%clk 0:00:43]}  Kd6 {[%clk 0:00:50]} 34. e7 {[%clk 0:00:41]}  Re8 {[%clk 0:00:46]} 35. Re6+ {[%clk 0:00:41]}  Kd7 {[%clk 0:00:44]} 36. Rde1 {[%clk 0:00:41]}  Rg8 {[%clk 0:00:36]} 37. Kf1 {[%clk 0:00:33]}  Rbe8 {[%clk 0:00:33]} 38. R1e4 {[%clk 0:00:32]}  Rg7 {[%clk 0:00:28]} 39. Rxf4 {[%clk 0:00:24]}  Rgxe7 {[%clk 0:00:26]} 40. Rxe7+ {[%clk 0:00:20]}  Rxe7 {[%clk 0:00:26]} 41. Rf6 {[%clk 0:00:19]}  Re4 {[%clk 0:00:24]} 42. Rxg6 {[%clk 0:00:18]}  Rxh4 {[%clk 0:00:22]} 43. g3 {[%clk 0:00:13]}  Ra4 {[%clk 0:00:20]} 44. f4 {[%clk 0:00:12]}  Rxa2 {[%clk 0:00:17]} 45. Rh6 {[%clk 0:00:09]}  Rxa5 {[%clk 0:00:15]} 46. Rxh5 {[%clk 0:00:09]}  Rc5 {[%clk 0:00:13]} 47. Ke2 {[%clk 0:00:07]}  a5 {[%clk 0:00:10]} 48. Kd3 {[%clk 0:00:06]}  a4 {[%clk 0:00:08]} 49. Kd4 {[%clk 0:00:07]}  b6 {[%clk 0:00:08]} 50. Rh1 {[%clk 0:00:06]}  a3 {[%clk 0:00:07]} 51. Ra1 {[%clk 0:00:05]}  Ra5 {[%clk 0:00:07]} 52. g4 {[%clk 0:00:05]}  Ra4+ {[%clk 0:00:07]} 53. Ke5 {[%clk 0:00:05]}  Ke7 {[%clk 0:00:06]} 54. g5 {[%clk 0:00:05]}  Kf7 {[%clk 0:00:06]} 55. f5 {[%clk 0:00:05]}  Ra5 {[%clk 0:00:05]} 56. g6+ {[%clk 0:00:04]}  Kg7 {[%clk 0:00:05]} 57. Ke6 {[%clk 0:00:05]}  a2 {[%clk 0:00:03]} 58. f6+ {[%clk 0:00:01]}  Kxg6 {[%clk 0:00:03]} 59. f7 {[%clk 0:00:01]}  Ra8 {[%clk 0:00:02]} 60. Rg1+ {[%clk 0:00:01]}  Kh5 {[%clk 0:00:01]} 61. Ke7 {[%clk 0:00:01]} 1-0


[Site "https://www.chess.com"]

[Event "Titled Tuesday Blitz February 22 Late 2022"]
[White "Jacobson, Aaron"]
[Black "Terry, Renato"]
[WhiteFideId "2089912"]
[BlackFideId "3803457"]
[WhiteElo "2265"]
[BlackElo "2577"]
[Result "1-0"]
[Round "02"]
[TimeControl "180+1"]
[Date "2022.02.22"]
[WhiteClock "0:00:20"]
[BlackClock "0:00:23"]

1. d4 {[%clk 0:03:00]}  d5 {[%clk 0:02:58]} 2. Nf3 {[%clk 0:02:59]}  Nf6 {[%clk 0:02:58]} 3. c4 {[%clk 0:03:00]}  c6 {[%clk 0:02:59]} 4. Nc3 {[%clk 0:02:58]}  a6 {[%clk 0:02:59]} 5. cxd5 {[%clk 0:02:37]}  cxd5 {[%clk 0:02:59]} 6. Bg5 {[%clk 0:02:34]}  Nc6 {[%clk 0:02:54]} 7. e3 {[%clk 0:02:31]}  e6 {[%clk 0:02:46]} 8. Bd3 {[%clk 0:02:27]}  b5 {[%clk 0:02:43]} 9. O-O {[%clk 0:02:25]}  Be7 {[%clk 0:02:41]} 10. Rc1 {[%clk 0:02:19]}  Bb7 {[%clk 0:02:41]} 11. a4 {[%clk 0:02:16]}  b4 {[%clk 0:02:41]} 12. Nb1 {[%clk 0:02:16]}  h6 {[%clk 0:02:22]} 13. Bh4 {[%clk 0:02:14]}  g5 {[%clk 0:02:21]} 14. Bg3 {[%clk 0:02:14]}  Nh5 {[%clk 0:02:12]} 15. Be5 {[%clk 0:01:58]}  Nxe5 {[%clk 0:02:09]} 16. Nxe5 {[%clk 0:01:59]}  Nf6 {[%clk 0:02:10]} 17. Nd2 {[%clk 0:01:35]}  Rc8 {[%clk 0:02:04]} 18. Rxc8 {[%clk 0:01:30]}  Qxc8 {[%clk 0:02:03]} 19. f4 {[%clk 0:01:26]}  Nd7 {[%clk 0:01:51]} 20. Nxf7 {[%clk 0:01:04]}  Kxf7 {[%clk 0:01:48]} 21. Qh5+ {[%clk 0:01:04]}  Kf8 {[%clk 0:01:33]} 22. fxg5+ {[%clk 0:01:04]}  Bf6 {[%clk 0:01:33]} 23. gxf6 {[%clk 0:00:57]}  Qe8 {[%clk 0:01:33]} 24. Bg6 {[%clk 0:00:41]}  Qd8 {[%clk 0:01:30]} 25. Bf7 {[%clk 0:00:34]}  Nxf6 {[%clk 0:00:32]} 26. Qg6 {[%clk 0:00:34]}  Ke7 {[%clk 0:00:25]} 27. Qxf6+ {[%clk 0:00:34]}  Kd7 {[%clk 0:00:26]} 28. Bxe6+ {[%clk 0:00:29]}  Kc7 {[%clk 0:00:26]} 29. Qxd8+ {[%clk 0:00:27]}  Rxd8 {[%clk 0:00:27]} 30. Rf7+ {[%clk 0:00:27]}  Kb8 {[%clk 0:00:26]} 31. Rg7 {[%clk 0:00:18]}  Re8 {[%clk 0:00:25]} 32. Rg8 {[%clk 0:00:18]}  Rxg8 {[%clk 0:00:24]} 33. Bxg8 {[%clk 0:00:19]}  a5 {[%clk 0:00:24]} 34. b3 {[%clk 0:00:19]}  Kc7 {[%clk 0:00:24]} 35. Kf2 {[%clk 0:00:19]}  Kd6 {[%clk 0:00:25]} 36. Kf3 {[%clk 0:00:20]}  Ba6 {[%clk 0:00:25]} 37. Kf4 {[%clk 0:00:19]}  Bd3 {[%clk 0:00:24]} 38. g4 {[%clk 0:00:19]}  Bg6 {[%clk 0:00:23]} 39. h4 {[%clk 0:00:20]}  Bc2 {[%clk 0:00:23]} 40. g5 {[%clk 0:00:20]} 1-0


[Site "https://www.chess.com"]